[Event "Titled Tuesday Blitz February 14 Early 2023"]
[White "Belozerov, Andrei"]
[Black "Semenenko, Dmytry"]
[WhiteFideId "4120213"]
[BlackFideId "14118645"]
[WhiteElo "2461"]
[BlackElo "2113"]
[Result "1-0"]
[Round "02"]
[TimeControl "180+2"]
[Date "2023.02.15"]
[WhiteClock "0:00:45"]
[BlackClock "0:00:43"]

1. e4 {[%clk 0:03:00]}  Nf6 {[%clk 0:03:00]} 2. e5 {[%clk 0:03:00]}  Nd5 {[%clk 0:03:00]} 3. d4 {[%clk 0:03:01]}  d6 {[%clk 0:03:00]} 4. c4 {[%clk 0:03:02]}  Nb6 {[%clk 0:03:00]} 5. f4 {[%clk 0:03:02]}  dxe5 {[%clk 0:03:00]} 6. fxe5 {[%clk 0:03:02]}  Nc6 {[%clk 0:03:01]} 7. Be3 {[%clk 0:03:01]}  Bf5 {[%clk 0:03:01]} 8. Nc3 {[%clk 0:03:01]}  e6 {[%clk 0:03:01]} 9. Nf3 {[%clk 0:03:00]}  Bg4 {[%clk 0:03:01]} 10. Be2 {[%clk 0:02:46]}  Bxf3 {[%clk 0:03:01]} 11. gxf3 {[%clk 0:02:46]}  Qh4+ {[%clk 0:03:01]} 12. Bf2 {[%clk 0:02:45]}  Qf4 {[%clk 0:03:01]} 13. c5 {[%clk 0:02:20]}  Nd5 {[%clk 0:03:00]} 14. Nxd5 {[%clk 0:02:19]}  exd5 {[%clk 0:03:00]} 15. Qd2 {[%clk 0:02:18]}  Qf5 {[%clk 0:03:00]} 16. Qd3 {[%clk 0:02:14]}  Qf4 {[%clk 0:02:55]} 17. Qe3 {[%clk 0:02:10]}  Qf5 {[%clk 0:02:45]} 18. Bd3 {[%clk 0:02:07]}  Qh3 {[%clk 0:02:39]} 19. O-O-O {[%clk 0:02:01]}  g6 {[%clk 0:02:33]} 20. f4 {[%clk 0:01:52]}  Qxe3+ {[%clk 0:02:09]} 21. Bxe3 {[%clk 0:01:53]}  Bh6 {[%clk 0:02:10]} 22. Kd2 {[%clk 0:01:43]}  f6 {[%clk 0:02:01]} 23. h4 {[%clk 0:01:38]}  fxe5 {[%clk 0:01:40]} 24. fxe5 {[%clk 0:01:38]}  Bxe3+ {[%clk 0:01:39]} 25. Kxe3 {[%clk 0:01:38]}  Ke7 {[%clk 0:01:36]} 26. h5 {[%clk 0:01:36]}  g5 {[%clk 0:01:32]} 27. h6 {[%clk 0:01:34]}  Raf8 {[%clk 0:01:29]} 28. Rdf1 {[%clk 0:01:33]}  Nd8 {[%clk 0:01:24]} 29. Rxf8 {[%clk 0:01:30]}  Kxf8 {[%clk 0:01:21]} 30. Rh5 {[%clk 0:01:14]}  Ne6 {[%clk 0:01:16]} 31. Bf5 {[%clk 0:01:13]}  Ke7 {[%clk 0:01:05]} 32. Bxe6 {[%clk 0:01:12]}  Kxe6 {[%clk 0:01:06]} 33. Rxg5 {[%clk 0:01:13]}  Rf8 {[%clk 0:01:06]} 34. Rg7 {[%clk 0:01:12]}  Rf1 {[%clk 0:00:59]} 35. Rxc7 {[%clk 0:01:11]}  Re1+ {[%clk 0:00:59]} 36. Kd2 {[%clk 0:01:08]}  Re4 {[%clk 0:01:00]} 37. Kd3 {[%clk 0:01:07]}  Rh4 {[%clk 0:01:00]} 38. Rxh7 {[%clk 0:01:05]}  Rh3+ {[%clk 0:01:00]} 39. Kc2 {[%clk 0:01:04]}  Rh2+ {[%clk 0:00:57]} 40. Kc3 {[%clk 0:01:04]}  Rh3+ {[%clk 0:00:57]} 41. Kc2 {[%clk 0:01:03]}  Rh2+ {[%clk 0:00:57]} 42. Kb3 {[%clk 0:01:02]}  Rh3+ {[%clk 0:00:57]} 43. Kb4 {[%clk 0:00:58]}  Rh4 {[%clk 0:00:56]} 44. Rxb7 {[%clk 0:00:56]}  Rxd4+ {[%clk 0:00:56]} 45. Kb5 {[%clk 0:00:56]}  Kxe5 {[%clk 0:00:55]} 46. h7 {[%clk 0:00:55]}  Rh4 {[%clk 0:00:53]} 47. b4 {[%clk 0:00:54]}  d4 {[%clk 0:00:51]} 48. Rd7 {[%clk 0:00:54]}  a6+ {[%clk 0:00:46]} 49. Kxa6 {[%clk 0:00:49]}  Ke4 {[%clk 0:00:46]} 50. c6 {[%clk 0:00:48]}  Rh6 {[%clk 0:00:44]} 51. Kb7 {[%clk 0:00:47]}  d3 {[%clk 0:00:45]} 52. c7 {[%clk 0:00:46]}  d2 {[%clk 0:00:43]} 53. Rxd2 {[%clk 0:00:45]}  Rxh7 {[%clk 0:00:43]} 54. Kb8 {[%clk 0:00:45]} 1-0


[Site "https://www.chess.com"]

[Event "Titled Tuesday Blitz February 14 Early 2023"]
[White "Aggelis, Nikolaos"]
[Black "Mouhamad, Joachim"]
[WhiteFideId "4213220"]
[BlackFideId "656410"]
[WhiteElo "2270"]
[BlackElo "2238"]
[Result "1-0"]
[Round "02"]
[TimeControl "180+2"]
[Date "2023.02.15"]
[WhiteClock "0:00:50"]
[BlackClock "0:00:05"]

1. d4 {[%clk 0:03:00]}  d5 {[%clk 0:02:59]} 2. g3 {[%clk 0:03:01]}  c5 {[%clk 0:02:59]} 3. Nf3 {[%clk 0:03:01]}  Nc6 {[%clk 0:02:59]} 4. Bg2 {[%clk 0:03:02]}  Nf6 {[%clk 0:02:58]} 5. O-O {[%clk 0:03:03]}  e6 {[%clk 0:02:56]} 6. c4 {[%clk 0:03:03]}  cxd4 {[%clk 0:02:54]} 7. Nxd4 {[%clk 0:03:02]}  Bc5 {[%clk 0:02:55]} 8. Nb3 {[%clk 0:03:00]}  Bb6 {[%clk 0:02:54]} 9. c5 {[%clk 0:03:00]}  Bc7 {[%clk 0:02:54]} 10. Nc3 {[%clk 0:03:01]}  O-O {[%clk 0:02:53]} 11. e4 {[%clk 0:03:01]}  d4 {[%clk 0:02:46]} 12. Nb5 {[%clk 0:03:01]}  e5 {[%clk 0:02:45]} 13. Bg5 {[%clk 0:02:52]}  Bb8 {[%clk 0:02:41]} 14. f4 {[%clk 0:02:52]}  h6 {[%clk 0:02:38]} 15. Bxf6 {[%clk 0:02:42]}  Qxf6 {[%clk 0:02:39]} 16. fxe5 {[%clk 0:02:43]}  Qxe5 {[%clk 0:02:36]} 17. N5xd4 {[%clk 0:02:44]}  Nxd4 {[%clk 0:02:29]} 18. Qxd4 {[%clk 0:02:42]}  Be6 {[%clk 0:02:26]} 19. Rad1 {[%clk 0:02:28]}  a5 {[%clk 0:01:55]} 20. Qxe5 {[%clk 0:01:44]}  Bxe5 {[%clk 0:01:55]} 21. Nd4 {[%clk 0:01:45]}  Bxa2 {[%clk 0:01:51]} 22. Rf2 {[%clk 0:01:40]}  a4 {[%clk 0:01:44]} 23. Rfd2 {[%clk 0:01:39]}  Rfd8 {[%clk 0:01:41]} 24. Nf5 {[%clk 0:01:37]}  Rxd2 {[%clk 0:01:39]} 25. Rxd2 {[%clk 0:01:38]}  Kf8 {[%clk 0:01:33]} 26. Nd6 {[%clk 0:01:38]}  Rd8 {[%clk 0:01:14]} 27. Bf1 {[%clk 0:01:32]}  Bb1 {[%clk 0:00:57]} 28. Bb5 {[%clk 0:01:24]}  b6 {[%clk 0:00:49]} 29. Bxa4 {[%clk 0:01:24]}  bxc5 {[%clk 0:00:46]} 30. Nc4 {[%clk 0:01:24]}  Bd4+ {[%clk 0:00:43]} 31. Kf1 {[%clk 0:01:24]}  Bxe4 {[%clk 0:00:43]} 32. Bc2 {[%clk 0:01:19]}  Bd5 {[%clk 0:00:39]} 33. Nb6 {[%clk 0:01:18]}  Be6 {[%clk 0:00:36]} 34. Be4 {[%clk 0:01:14]}  Bh3+ {[%clk 0:00:32]} 35. Bg2 {[%clk 0:01:13]}  Be6 {[%clk 0:00:28]} 36. Re2 {[%clk 0:01:00]}  Rb8 {[%clk 0:00:23]} 37. Rxe6 {[%clk 0:01:00]}  fxe6 {[%clk 0:00:11]} 38. Nd7+ {[%clk 0:01:01]}  Kf7 {[%clk 0:00:09]} 39. Nxb8 {[%clk 0:01:02]}  Bxb2 {[%clk 0:00:09]} 40. Ke2 {[%clk 0:00:59]}  h5 {[%clk 0:00:07]} 41. Kd3 {[%clk 0:00:58]}  h4 {[%clk 0:00:03]} 42. Na6 {[%clk 0:00:57]}  Be5 {[%clk 0:00:03]} 43. gxh4 {[%clk 0:00:54]}  Bxh2 {[%clk 0:00:03]} 44. Nxc5 {[%clk 0:00:54]}  g6 {[%clk 0:00:04]} 45. Ne4 {[%clk 0:00:53]}  Be5 {[%clk 0:00:02]} 46. Ke2 {[%clk 0:00:53]}  Bf6 {[%clk 0:00:03]} 47. Ng5+ {[%clk 0:00:52]}  Bxg5 {[%clk 0:00:03]} 48. hxg5 {[%clk 0:00:52]}  e5 {[%clk 0:00:04]} 49. Kf3 {[%clk 0:00:50]}  Ke6 {[%clk 0:00:04]} 50. Ke4 {[%clk 0:00:50]}  Kf7 {[%clk 0:00:05]} 51. Bf1 {[%clk 0:00:50]} 1-0


[Site "https://www.chess.com"]

[Event "Titled Tuesday Blitz February 14 Early 2023"]
[White "Pourkashiyan, Atousa"]
[Black "Iskusnyh, Sergei"]
[WhiteFideId "12502014"]
[BlackFideId "4120027"]
[WhiteElo "2282"]
[BlackElo "2440"]
[Result "0-1"]
[Round "02"]
[TimeControl "180+2"]
[Date "2023.02.15"]
[WhiteClock "0:00:03"]
[BlackClock "0:00:09"]

1. e4 {[%clk 0:02:07]}  e6 {[%clk 0:02:57]} 2. d4 {[%clk 0:02:06]}  d5 {[%clk 0:02:56]} 3. Nd2 {[%clk 0:02:06]}  c5 {[%clk 0:02:55]} 4. exd5 {[%clk 0:02:06]}  Qxd5 {[%clk 0:02:55]} 5. Ngf3 {[%clk 0:02:05]}  cxd4 {[%clk 0:02:55]} 6. Bc4 {[%clk 0:02:04]}  Qd7 {[%clk 0:02:55]} 7. O-O {[%clk 0:02:04]}  Nc6 {[%clk 0:02:53]} 8. Nb3 {[%clk 0:02:04]}  a6 {[%clk 0:02:53]} 9. Nbxd4 {[%clk 0:02:04]}  Nxd4 {[%clk 0:02:52]} 10. Nxd4 {[%clk 0:02:05]}  Qc7 {[%clk 0:02:50]} 11. Qe2 {[%clk 0:01:53]}  Bd6 {[%clk 0:02:47]} 12. h3 {[%clk 0:01:52]}  Ne7 {[%clk 0:02:43]} 13. Bd3 {[%clk 0:01:45]}  O-O {[%clk 0:02:20]} 14. Bg5 {[%clk 0:01:39]}  Ng6 {[%clk 0:02:17]} 15. Rad1 {[%clk 0:01:26]}  Bh2+ {[%clk 0:01:51]} 16. Kh1 {[%clk 0:01:25]}  Bf4 {[%clk 0:01:52]} 17. Nf3 {[%clk 0:00:31]}  h6 {[%clk 0:01:17]} 18. Bxg6 {[%clk 0:00:23]}  hxg5 {[%clk 0:01:17]} 19. Bd3 {[%clk 0:00:20]}  Qc5 {[%clk 0:01:04]} 20. g3 {[%clk 0:00:18]}  Bc7 {[%clk 0:01:03]} 21. Qe4 {[%clk 0:00:15]}  g6 {[%clk 0:01:00]} 22. Rfe1 {[%clk 0:00:13]}  Qf5 {[%clk 0:00:58]} 23. Qg4 {[%clk 0:00:08]}  Qxg4 {[%clk 0:00:55]} 24. hxg4 {[%clk 0:00:09]}  Kg7 {[%clk 0:00:23]} 25. Nxg5 {[%clk 0:00:08]}  Bd7 {[%clk 0:00:20]} 26. Be4 {[%clk 0:00:07]}  Bb5 {[%clk 0:00:19]} 27. Bxb7 {[%clk 0:00:07]}  Rab8 {[%clk 0:00:19]} 28. Bg2 {[%clk 0:00:06]}  Ba5 {[%clk 0:00:17]} 29. c3 {[%clk 0:00:05]}  Bc4 {[%clk 0:00:15]} 30. Kg1 {[%clk 0:00:04]}  Rxb2 {[%clk 0:00:13]} 31. Rd7 {[%clk 0:00:03]}  Bb6 {[%clk 0:00:12]} 32. Nxe6+ {[%clk 0:00:02]}  Bxe6 {[%clk 0:00:11]} 33. Rxe6 {[%clk 0:00:03]}  Bxf2+ {[%clk 0:00:11]} 34. Kf1 {[%clk 0:00:03]}  Bxg3 {[%clk 0:00:09]} 0-1


[Site "https://www.chess.com"]

[Event "Titled Tuesday Blitz February 14 Early 2023"]
[White "Kalajzic, Ivan"]
[Black "Koellner, Ruben Gideon"]
[WhiteFideId "14506378"]
[BlackFideId "12993093"]
[WhiteElo "2062"]
[BlackElo "2426"]
[Result "0-1"]
[Round "02"]
[TimeControl "180+2"]
[Date "2023.02.15"]
[WhiteClock "0:00:13"]
[BlackClock "0:01:20"]

1. b3 {[%clk 0:03:00]}  d6 {[%clk 0:02:55]} 2. Bb2 {[%clk 0:03:00]}  e5 {[%clk 0:02:55]} 3. e3 {[%clk 0:03:00]}  Nd7 {[%clk 0:02:55]} 4. d4 {[%clk 0:03:00]}  exd4 {[%clk 0:02:55]} 5. Qxd4 {[%clk 0:03:00]}  Ngf6 {[%clk 0:02:56]} 6. c4 {[%clk 0:02:59]}  Be7 {[%clk 0:02:56]} 7. Nc3 {[%clk 0:02:59]}  O-O {[%clk 0:02:57]} 8. Nd5 {[%clk 0:03:00]}  Re8 {[%clk 0:02:55]} 9. Nxe7+ {[%clk 0:02:59]}  Qxe7 {[%clk 0:02:56]} 10. Nf3 {[%clk 0:02:58]}  Ne5 {[%clk 0:02:56]} 11. Be2 {[%clk 0:02:53]}  Bg4 {[%clk 0:02:56]} 12. O-O-O {[%clk 0:02:37]}  Nc6 {[%clk 0:02:51]} 13. Qf4 {[%clk 0:02:31]}  Bh5 {[%clk 0:02:45]} 14. Bxf6 {[%clk 0:02:27]}  gxf6 {[%clk 0:02:42]} 15. Nd4 {[%clk 0:02:14]}  Bg6 {[%clk 0:02:31]} 16. Nxc6 {[%clk 0:01:45]}  bxc6 {[%clk 0:02:32]} 17. h4 {[%clk 0:01:44]}  Qe5 {[%clk 0:02:28]} 18. Qxe5 {[%clk 0:01:43]}  fxe5 {[%clk 0:02:29]} 19. h5 {[%clk 0:01:35]}  Be4 {[%clk 0:02:28]} 20. Rh4 {[%clk 0:01:30]}  Bf5 {[%clk 0:02:25]} 21. Bg4 {[%clk 0:01:04]}  Bxg4 {[%clk 0:02:18]} 22. Rxg4+ {[%clk 0:01:05]}  Kh8 {[%clk 0:02:18]} 23. Rh1 {[%clk 0:01:03]}  Rg8 {[%clk 0:02:18]} 24. Rhh4 {[%clk 0:01:03]}  f5 {[%clk 0:02:17]} 25. Rxg8+ {[%clk 0:00:55]}  Rxg8 {[%clk 0:02:18]} 26. g3 {[%clk 0:00:55]}  Kg7 {[%clk 0:02:18]} 27. c5 {[%clk 0:00:54]}  e4 {[%clk 0:02:08]} 28. g4 {[%clk 0:00:48]}  Kf6 {[%clk 0:02:02]} 29. gxf5 {[%clk 0:00:46]}  d5 {[%clk 0:01:59]} 30. Rf4 {[%clk 0:00:40]}  Rg5 {[%clk 0:01:54]} 31. f3 {[%clk 0:00:29]}  exf3 {[%clk 0:01:52]} 32. Rxf3 {[%clk 0:00:27]}  Rxh5 {[%clk 0:01:52]} 33. Rf4 {[%clk 0:00:23]}  Rxf5 {[%clk 0:01:50]} 34. Ra4 {[%clk 0:00:23]}  Kg5 {[%clk 0:01:38]} 35. Rxa7 {[%clk 0:00:22]}  Rf7 {[%clk 0:01:37]} 36. a4 {[%clk 0:00:22]}  h5 {[%clk 0:01:37]} 37. Ra8 {[%clk 0:00:22]}  Rh7 {[%clk 0:01:30]} 38. a5 {[%clk 0:00:21]}  h4 {[%clk 0:01:30]} 39. a6 {[%clk 0:00:22]}  h3 {[%clk 0:01:31]} 40. a7 {[%clk 0:00:22]}  h2 {[%clk 0:01:30]} 41. Rg8+ {[%clk 0:00:22]}  Kf5 {[%clk 0:01:29]} 42. a8=Q {[%clk 0:00:23]}  h1=Q+ {[%clk 0:01:29]} 43. Kb2 {[%clk 0:00:23]}  Rh2+ {[%clk 0:01:26]} 44. Ka3 {[%clk 0:00:21]}  Qc1+ {[%clk 0:01:21]} 45. Ka4 {[%clk 0:00:16]}  Ra2+ {[%clk 0:01:20]} 46. Kb4 {[%clk 0:00:13]}  Qd2# {[%clk 0:01:20]} 0-1


[Site "https://www.chess.com"]

[Event "Titled Tuesday Blitz February 14 Early 2023"]
[White "Harriott, Tyrell"]
[Black "Demin, Vladimir"]
[WhiteFideId "2086484"]
[BlackFideId "4167457"]
[WhiteElo "1889"]
[BlackElo "2430"]
[Result "1-0"]
[Round "02"]
[TimeControl "180+2"]
[Date "2023.02.15"]
[WhiteClock "0:01:30"]
[BlackClock "0:01:59"]

1. d4 {[%clk 0:03:00]}  d5 {[%clk 0:02:59]} 2. e3 {[%clk 0:03:00]}  Nf6 {[%clk 0:02:59]} 3. Bd3 {[%clk 0:03:00]}  c5 {[%clk 0:02:58]} 4. c3 {[%clk 0:03:00]}  Nc6 {[%clk 0:02:59]} 5. f4 {[%clk 0:03:00]}  Qb6 {[%clk 0:02:48]} 6. Nd2 {[%clk 0:02:54]}  Bg4 {[%clk 0:02:47]} 7. Ne2 {[%clk 0:02:54]}  e6 {[%clk 0:02:45]} 8. O-O {[%clk 0:02:54]}  c4 {[%clk 0:02:44]} 9. Bc2 {[%clk 0:02:54]}  Qc7 {[%clk 0:02:44]} 10. Nf3 {[%clk 0:02:50]}  Bd6 {[%clk 0:02:40]} 11. Ne5 {[%clk 0:02:50]}  Bxe2 {[%clk 0:02:39]} 12. Qxe2 {[%clk 0:02:49]}  Nd7 {[%clk 0:02:39]} 13. e4 {[%clk 0:02:47]}  Bxe5 {[%clk 0:02:35]} 14. fxe5 {[%clk 0:02:46]}  O-O-O {[%clk 0:02:32]} 15. Rxf7 {[%clk 0:02:44]}  Rdf8 {[%clk 0:02:30]} 16. Rxg7 {[%clk 0:02:43]}  Qd8 {[%clk 0:02:26]} 17. exd5 {[%clk 0:02:40]}  exd5 {[%clk 0:02:27]} 18. Rxh7 {[%clk 0:02:30]}  Rhg8 {[%clk 0:02:26]} 19. Bh6 {[%clk 0:02:19]}  Re8 {[%clk 0:02:16]} 20. Bf5 {[%clk 0:02:15]}  Ne7 {[%clk 0:02:14]} 21. Qh5 {[%clk 0:01:54]}  Nxf5 {[%clk 0:02:00]} 22. Qxf5 {[%clk 0:01:53]}  Re7 {[%clk 0:01:58]} 23. Rxe7 {[%clk 0:01:31]}  Qxe7 {[%clk 0:01:59]} 24. Rf1 {[%clk 0:01:30]} 1-0


[Site "https://www.chess.com"]

[Event "Titled Tuesday Blitz February 14 Early 2023"]
[White "Real_taiatai"]
[Black "Yurovskykh, Oleksandr"]
[BlackFideId "14134020"]
[WhiteElo "2349"]
[BlackElo "2328"]
[Result "0-1"]
[Round "02"]
[TimeControl "180+2"]
[Date "2023.02.15"]
[WhiteClock "0:00:16"]
[BlackClock "0:00:08"]

1. d4 {[%clk 0:03:00]}  d5 {[%clk 0:02:53]} 2. c4 {[%clk 0:03:01]}  dxc4 {[%clk 0:02:52]} 3. Nf3 {[%clk 0:03:01]}  Nf6 {[%clk 0:02:52]} 4. e3 {[%clk 0:02:59]}  e6 {[%clk 0:02:51]} 5. Bxc4 {[%clk 0:02:57]}  c5 {[%clk 0:02:51]} 6. O-O {[%clk 0:02:57]}  Nc6 {[%clk 0:02:45]} 7. Nc3 {[%clk 0:02:55]}  cxd4 {[%clk 0:02:39]} 8. exd4 {[%clk 0:02:54]}  Be7 {[%clk 0:02:38]} 9. Bg5 {[%clk 0:02:51]}  O-O {[%clk 0:02:34]} 10. Re1 {[%clk 0:02:43]}  Nb4 {[%clk 0:02:11]} 11. a3 {[%clk 0:02:39]}  Nbd5 {[%clk 0:02:11]} 12. Qd3 {[%clk 0:02:39]}  b6 {[%clk 0:02:06]} 13. Ne5 {[%clk 0:02:37]}  Bb7 {[%clk 0:02:03]} 14. Rad1 {[%clk 0:02:23]}  Rc8 {[%clk 0:02:02]} 15. Ba2 {[%clk 0:02:08]}  Nxc3 {[%clk 0:01:34]} 16. bxc3 {[%clk 0:02:09]}  Nd5 {[%clk 0:01:35]} 17. Bxe7 {[%clk 0:01:47]}  Qxe7 {[%clk 0:01:34]} 18. Bxd5 {[%clk 0:01:40]}  Bxd5 {[%clk 0:01:32]} 19. c4 {[%clk 0:01:40]}  Ba8 {[%clk 0:01:28]} 20. d5 {[%clk 0:01:19]}  Rfd8 {[%clk 0:01:19]} 21. d6 {[%clk 0:01:17]}  Qb7 {[%clk 0:00:51]} 22. Qh3 {[%clk 0:01:01]}  Rc5 {[%clk 0:00:41]} 23. d7 {[%clk 0:00:39]}  Rxe5 {[%clk 0:00:18]} 24. Rxe5 {[%clk 0:00:37]}  Rxd7 {[%clk 0:00:19]} 25. Ree1 {[%clk 0:00:32]}  Qe4 {[%clk 0:00:16]} 26. Qg3 {[%clk 0:00:22]}  g6 {[%clk 0:00:12]} 27. h3 {[%clk 0:00:17]}  Rxd1 {[%clk 0:00:11]} 28. Rxd1 {[%clk 0:00:17]}  Kg7 {[%clk 0:00:11]} 29. Qc3+ {[%clk 0:00:17]}  e5 {[%clk 0:00:10]} 30. c5 {[%clk 0:00:16]}  Qxg2# {[%clk 0:00:08]} 0-1


[Site "https://www.chess.com"]

[Event "Titled Tuesday Blitz February 14 Early 2023"]
[White "Principe, Gerson"]
[Black "Goldin, Roman"]
[WhiteFideId "3804550"]
[BlackFideId "2803860"]
[WhiteElo "2226"]
[BlackElo "2322"]
[Result "1-0"]
[Round "02"]
[TimeControl "180+2"]
[Date "2023.02.15"]
[WhiteClock "0:00:04"]
[BlackClock "0:00:01"]

1. d4 {[%clk 0:02:59]}  Nf6 {[%clk 0:02:59]} 2. Nf3 {[%clk 0:02:56]}  b5 {[%clk 0:02:58]} 3. e3 {[%clk 0:02:37]}  a6 {[%clk 0:02:57]} 4. Be2 {[%clk 0:02:35]}  Bb7 {[%clk 0:02:57]} 5. O-O {[%clk 0:02:36]}  e6 {[%clk 0:02:56]} 6. c3 {[%clk 0:02:33]}  c5 {[%clk 0:02:56]} 7. a4 {[%clk 0:02:33]}  b4 {[%clk 0:02:53]} 8. cxb4 {[%clk 0:02:18]}  cxd4 {[%clk 0:02:48]} 9. b5 {[%clk 0:02:16]}  dxe3 {[%clk 0:02:38]} 10. Bxe3 {[%clk 0:02:15]}  axb5 {[%clk 0:02:29]} 11. Bxb5 {[%clk 0:02:13]}  Be7 {[%clk 0:02:29]} 12. Nbd2 {[%clk 0:01:42]}  Ba6 {[%clk 0:02:17]} 13. Qe2 {[%clk 0:01:28]}  O-O {[%clk 0:02:15]} 14. Rfb1 {[%clk 0:01:18]}  Nd5 {[%clk 0:02:12]} 15. Ne4 {[%clk 0:01:06]}  Bxb5 {[%clk 0:02:05]} 16. Qxb5 {[%clk 0:01:04]}  Nxe3 {[%clk 0:01:45]} 17. fxe3 {[%clk 0:01:05]}  Nc6 {[%clk 0:01:45]} 18. Nd4 {[%clk 0:00:50]}  Nb4 {[%clk 0:01:33]} 19. a5 {[%clk 0:00:25]}  Rb8 {[%clk 0:01:27]} 20. Qe2 {[%clk 0:00:26]}  d5 {[%clk 0:01:25]} 21. Nc3 {[%clk 0:00:22]}  Bc5 {[%clk 0:01:16]} 22. a6 {[%clk 0:00:21]}  Bxd4 {[%clk 0:01:11]} 23. exd4 {[%clk 0:00:21]}  Qb6 {[%clk 0:01:11]} 24. Ra4 {[%clk 0:00:15]}  Qxd4+ {[%clk 0:01:09]} 25. Kh1 {[%clk 0:00:16]}  Qc5 {[%clk 0:00:52]} 26. Rba1 {[%clk 0:00:15]}  Ra8 {[%clk 0:00:46]} 27. a7 {[%clk 0:00:15]}  Nc6 {[%clk 0:00:39]} 28. Qb5 {[%clk 0:00:14]}  Qd6 {[%clk 0:00:16]} 29. Ra6 {[%clk 0:00:14]}  Rfc8 {[%clk 0:00:17]} 30. Qb7 {[%clk 0:00:11]}  Qc7 {[%clk 0:00:16]} 31. Qxc7 {[%clk 0:00:05]}  Rxc7 {[%clk 0:00:16]} 32. Nb5 {[%clk 0:00:06]}  Rcc8 {[%clk 0:00:12]} 33. h3 {[%clk 0:00:06]}  Kf8 {[%clk 0:00:12]} 34. Nd6 {[%clk 0:00:06]}  Rc7 {[%clk 0:00:11]} 35. Nb5 {[%clk 0:00:06]}  Rcc8 {[%clk 0:00:11]} 36. R1a4 {[%clk 0:00:06]}  Ke7 {[%clk 0:00:11]} 37. b4 {[%clk 0:00:07]}  Kd7 {[%clk 0:00:11]} 38. Nc3 {[%clk 0:00:05]}  Ne5 {[%clk 0:00:09]} 39. Ne2 {[%clk 0:00:02]}  Nc4 {[%clk 0:00:08]} 40. b5 {[%clk 0:00:02]}  Rc7 {[%clk 0:00:06]} 41. b6 {[%clk 0:00:02]}  Rb7 {[%clk 0:00:06]} 42. Rb4 {[%clk 0:00:02]}  e5 {[%clk 0:00:05]} 43. Nc3 {[%clk 0:00:02]}  Kc6 {[%clk 0:00:05]} 44. Rb5 {[%clk 0:00:02]}  d4 {[%clk 0:00:03]} 45. Rb4 {[%clk 0:00:02]}  dxc3 {[%clk 0:00:02]} 46. Rxc4+ {[%clk 0:00:03]}  Kb5 {[%clk 0:00:03]} 47. Raa4 {[%clk 0:00:03]}  Rxb6 {[%clk 0:00:02]} 48. Rcb4+ {[%clk 0:00:03]}  Kc6 {[%clk 0:00:02]} 49. Rc4+ {[%clk 0:00:04]}  Kb7 {[%clk 0:00:02]} 50. Rxc3 {[%clk 0:00:04]}  Rxa7 {[%clk 0:00:03]} 51. Rxa7+ {[%clk 0:00:05]}  Kxa7 {[%clk 0:00:03]} 52. Rc7+ {[%clk 0:00:06]}  Rb7 {[%clk 0:00:03]} 53. Rc5 {[%clk 0:00:07]}  Re7 {[%clk 0:00:03]} 54. Kg1 {[%clk 0:00:06]}  Kb6 {[%clk 0:00:04]} 55. Rc3 {[%clk 0:00:07]}  f6 {[%clk 0:00:02]} 56. g4 {[%clk 0:00:07]}  Rc7 {[%clk 0:00:02]} 57. Rd3 {[%clk 0:00:05]}  Kc6 {[%clk 0:00:03]} 58. Kg2 {[%clk 0:00:06]}  Rd7 {[%clk 0:00:03]} 59. Ra3 {[%clk 0:00:06]}  Kd6 {[%clk 0:00:03]} 60. Kg3 {[%clk 0:00:06]}  Ke6 {[%clk 0:00:03]} 61. Ra6+ {[%clk 0:00:07]}  Ke7 {[%clk 0:00:03]} 62. Kf3 {[%clk 0:00:07]}  g6 {[%clk 0:00:03]} 63. Ke4 {[%clk 0:00:07]}  Rd4+ {[%clk 0:00:03]} 64. Ke3 {[%clk 0:00:07]}  Rd7 {[%clk 0:00:02]} 65. Rb6 {[%clk 0:00:07]}  Rc7 {[%clk 0:00:02]} 66. h4 {[%clk 0:00:07]}  Ra7 {[%clk 0:00:02]} 67. h5 {[%clk 0:00:06]}  Ra3+ {[%clk 0:00:02]} 68. Ke2 {[%clk 0:00:06]}  Ra1 {[%clk 0:00:02]} 69. Rb7+ {[%clk 0:00:05]}  Ke6 {[%clk 0:00:02]} 70. Rxh7 {[%clk 0:00:06]}  gxh5 {[%clk 0:00:02]} 71. Rxh5 {[%clk 0:00:05]}  Ra2+ {[%clk 0:00:02]} 72. Kf3 {[%clk 0:00:05]}  Ra3+ {[%clk 0:00:02]} 73. Kf2 {[%clk 0:00:04]}  Ra4 {[%clk 0:00:02]} 74. Kf3 {[%clk 0:00:05]}  Rf4+ {[%clk 0:00:02]} 75. Kg3 {[%clk 0:00:05]}  Kd5 {[%clk 0:00:02]} 76. Rh8 {[%clk 0:00:06]}  Ke4 {[%clk 0:00:02]} 77. Rd8 {[%clk 0:00:07]}  Rf3+ {[%clk 0:00:03]} 78. Kh4 {[%clk 0:00:07]}  Kf4 {[%clk 0:00:02]} 79. Rf8 {[%clk 0:00:07]}  Ke4 {[%clk 0:00:02]} 80. Rf7 {[%clk 0:00:05]}  Rf1 {[%clk 0:00:02]} 81. Rf8 {[%clk 0:00:04]}  Ke3 {[%clk 0:00:01]} 82. Rf7 {[%clk 0:00:04]}  e4 {[%clk 0:00:01]} 83. Kg3 {[%clk 0:00:04]}  Ke2 {[%clk 0:00:01]} 84. g5 {[%clk 0:00:04]} 1-0


[Site "https://www.chess.com"]